fUSD/lending_fUSD_20250404
["ID","MTS","AMOUNT","RATE_DAILY","PERIOD"]
[357108188,1743747043967,-792.0,0.000305,2]
[357108189,1743747043976,-1438.864,0.000305,2]
[357108190,1743747043985,-911.506,0.000305,2]
[357108191,1743747043994,-578.955,0.000305,2]
[357108192,1743747044003,-4096.0,0.000305,2]
[357108193,1743747044012,-3953.0,0.000305,2]
[357108194,1743747044021,-196.31,0.000305,2]
[357108195,1743747044030,-851.0,0.000305,2]
[357108196,1743747044039,-150.0,0.0003051,2]
[357108197,1743747044049,-4273.35,0.0003051,2]
[357108198,1743747044058,-153.65139158,0.0003053,5]
[357108199,1743747044068,-4309.77631542,0.00030553,2]
[357108200,1743747044077,-184.64,0.00030735,2]
[357108201,1743747044087,-282.15,0.00030764,2]
[357108202,1743747044096,-350.0,0.00031,2]
[357108203,1743747044106,-2454.84,0.00031102,2]
[357108204,1743747044115,-300.0,0.00031156,2]
[357108205,1743747044125,-986.78,0.00031196,2]
[357108206,1743747044134,-308.5,0.00031233,2]
[357108207,1743747044143,-1000.0,0.00031546,2]
[357108208,1743747044152,-12004.76,0.00031546,2]
[357108209,1743747044162,-25932.12,0.00032079,2]
[357108210,1743747044172,-447.45,0.00032715,2]
[357108211,1743747044181,-448.59837705,0.0003286,2]
[357108212,1743747044190,-400.0,0.00033,2]
[357108213,1743747044200,-7853.78992468,0.0003334,2]
[357108214,1743747044209,-317.9,0.00033386,2]
[357108215,1743747044219,-500.0,0.00033409,5]
[357108216,1743747044229,-1284.0,0.000335,2]
[357108217,1743747044238,-2040.0,0.000335,2]
[357108218,1743747044247,-1364.0,0.000335,2]
[357108219,1743747044257,-574.0,0.000335,2]
[357108220,1743747044266,-790.0,0.000335,2]
[357108221,1743747044275,-1276.0,0.000335,2]
[357108222,1743747044284,-1434.0,0.000335,2]
[357108223,1743747044293,-909.0,0.000335,2]
[357108224,1743747044302,-543.0,0.000335,2]
[357108225,1743747044313,-4092.0,0.000335,2]
[357108226,1743747044322,-3947.0,0.000335,2]
[357108227,1743747044331,-151.0,0.000335,2]
[357108228,1743747044341,-851.0,0.000335,2]
[357108229,1743747044350,-632.41709066,0.0003414,2]
[357108230,1743747044360,-502.31122393,0.000342,5]
[357108231,1743747044373,-151.8,0.00034444,2]
[357108232,1743747044383,-31256.99,0.00034454,120]
[357108233,1743747044391,-1846.57957302,0.00034568,6]
[357108234,1743747044401,-447.45,0.00034979,2]
[357108235,1743747044413,-165.42,0.00035,2]
[357108236,1743747044423,-1000.0,0.00035,5]
[357108237,1743747044432,-169.58,0.00035053,120]
[357108238,1743747044443,-1000.0,0.00035489,2]
[357108239,1743747044452,-18564.0448777,0.00035548,2]
[357108240,1743747044462,-19376.5828722,0.00035548,2]
[357108241,1743747044472,-42324.92264776,0.00035568,7]
[357108242,1743747044482,-14754.1136793,0.00035568,7]
[357108243,1743747044491,-215.96737497,0.00035568,7]
[357108244,1743747044500,-153.9,0.00035616,2]
[357108245,1743747044509,-7253.41871249,0.00036,7]
[357108246,1743747044519,-332.0,0.000365,2]
[357108247,1743747044528,-504.25401958,0.00036689,5]
[357108248,1743747044537,-447.45,0.00037243,2]
[357108249,1743747044547,-500.0,0.000378,5]
[357108250,1743747044555,-500.0,0.000378,5]
[357108251,1743747044565,-448.59837705,0.00038115,2]
[357108252,1743747044574,-152.8,0.00038517,2]
[357108253,1743747044583,-1000.0,0.00038889,5]
[357108254,1743747044593,-1000.0,0.00039433,2]
[357108255,1743747044603,-447.45,0.00039506,2]
[357108256,1743747044612,-150.0,0.0004,120]
[357108257,1743747044622,-150.0,0.0004,120]
[357108258,1743747044631,-267.0,0.0004,120]
[357108259,1743747044641,-169.58,0.00040061,120]
[357108260,1743747044651,-188.15,0.00041481,2]
[357108261,1743747044661,-447.45,0.0004177,2]
[357108262,1743747044671,-158.0,0.00041855,30]
[357108263,1743747044680,-367.99,0.00041855,30]
[357108264,1743747044689,-1577.48,0.00042214,2]
[357108265,1743747044699,-175.26,0.00042512,2]
[357108266,1743747044708,-162.96,0.00042583,2]
[357108267,1743747044717,-323.6451562,0.00043279,10]
[357108268,1743747044726,-502.73636714,0.00043279,10]
[357108269,1743747044736,-448.59837705,0.0004337,15]
[357108270,1743747044746,-1000.0,0.00043376,2]
[357108271,1743747044755,-447.45,0.00044034,2]
[357108272,1743747044765,-151.0,0.00045,120]
[357108273,1743747044775,-151.0,0.00045,120]
[357108274,1743747044784,-150.0,0.00045,120]
[357108275,1743747044794,-169.58,0.00045068,120]
[357108276,1743747044804,-447.45,0.00046298,2]
[357108277,1743747044813,-1000.0,0.00047319,2]
[357108278,1743747044823,-166.66,0.00047695,2]
[357108279,1743747044832,-154.09,0.00047839,2]
[357108280,1743747044841,-447.45,0.00048562,2]
[357108281,1743747044851,-151.8,0.00048615,2]
[357108282,1743747044861,-448.59837705,0.00048625,15]
[357108283,1743747044870,-168.35,0.00048877,2]
[357108284,1743747044880,-18564.0448777,0.0004889,4]
[357108285,1743747044890,-19376.5828722,0.0004889,4]
[357108286,1743747044900,-1000.0,0.00049,120]
[357108287,1743747044910,-1362.844132,0.00049315,120]
[357108288,1743747044920,-1362.844132,0.00049315,120]
[357108289,1743747044930,-158.792278,0.00049315,120]
[357108290,1743747044939,-212.907,0.00049372,86]
[357108291,1743747044949,-18564.0448777,0.0004954,4]
[357108292,1743747044958,-19376.5828722,0.0004954,4]
[357108293,1743747044968,-151.8,0.0004954,120]
[357108294,1743747044978,-49878.04700981,0.0004955,120]
[357108295,1743747044988,-1362.844132,0.00049589,120]
[357108296,1743747044998,-1362.844132,0.00049589,120]
[357108297,1743747045008,-18564.0448777,0.00049853,4]
[357108298,1743747045018,-1362.844132,0.00049863,120]
[357108299,1743747045027,-1362.844132,0.00049863,120]
[357108300,1743747045037,-158.792278,0.00049863,120]
[357108301,1743747045047,-327.58953978,0.00050073,10]
[357108302,1743747045056,-515.24298404,0.00050073,10]
[357108303,1743747045066,-500.0,0.00050073,10]
[357108304,1743747045075,-151.8,0.0005008,120]
[357108305,1743747045086,-150.25,0.00050089,15]
[357108306,1743747045096,-150.25,0.00050089,15]
[357108307,1743747045105,-6509.35146444,0.0005009,4]
[357108310,1743747045895,-150.0,0.00028594,7]
[357108311,1743747045906,-2863.0020132,0.000489,120]
[357108313,1743747143165,172.0,0.00013699,2]
[357108314,1743747727591,335.895803,7.945e-05,2]
[357108316,1743747830389,-24994.0,0.00034881,30]
[357108317,1743747830415,-159.68,0.00036388,45]
[357108318,1743747830446,-159.48,0.000396,31]
[357108319,1743747830470,-8826.92,0.00042,120]
[357108320,1743747830494,-6587.4,0.00042,120]
[357108321,1743747830519,-225.0,0.000441,120]
[357108322,1743747830549,-159.48,0.000444,36]
[357108323,1743747830582,-159.48,0.000444,36]
[357108324,1743747830607,-151.0,0.00045,120]
[357108325,1743747830631,-500.0,0.00045153,30]
[357108326,1743747830657,-500.0,0.00045746,30]
[357108327,1743747830682,-800.0,0.00047102,30]
[357108328,1743747830716,-168.58,0.00048004,120]
[357108329,1743747830747,-193.24,0.00048292,120]
[357108330,1743747830772,-500.0,0.00048592,30]
[357108331,1743747830797,-22136.9979868,0.000489,120]
[357108332,1743747830823,-203.32,0.00049,120]
[357108333,1743747830848,-150.99,0.00049,30]
[357108334,1743747830878,-159.48,0.000491,45]
[357108335,1743747830907,-159.48,0.000491,45]
[357108336,1743747830932,-299.99,0.00049215,120]
[357108337,1743747830958,-5000.0,0.00049215,120]
[357108338,1743747830984,-150.0,0.00050099,120]
[357108339,1743747831012,-335.52,0.000501,30]
[357108340,1743747831036,-253.81,0.000501,30]
[357108341,1743747831063,-1362.844132,0.00050136,120]
[357108342,1743747831091,-1362.844132,0.0005041,120]
[357108343,1743747831117,-150.0,0.00051469,120]
[357108344,1743747831142,-995.0,0.00052,120]
[357108345,1743747831339,-1000.0,0.0005203,120]
[357108346,1743747831365,-150.0,0.00052839,120]
[357108347,1743747831389,-151.0,0.00053123,120]
[357108348,1743747831415,-153.9,0.00053425,120]
[357108349,1743747831439,-400000.0,0.0005344,30]
[357108350,1743747831463,-2000.0,0.000535,120]
[357108351,1743747831488,-18000.0,0.0005356,120]
[357108352,1743747831513,-7253.88305285,0.0005356,120]
[357108353,1743747831538,-20688.03805827,0.0005356,120]
[357108354,1743747831562,-500.0,0.00053578,30]
[357108355,1743747831589,-1473.02768049,0.00053581,58]
[357108356,1743747831617,-947937.64171087,0.00053581,57]
[357108357,1743747831640,-133094.31522511,0.00053581,120]
[357108358,1743747831670,-159.48,0.000539,54]
[357108359,1743747831698,-159.48,0.000539,54]
[357108360,1743747831728,-151.8,0.0005398,120]
[357108361,1743747831752,-151.8,0.0005398,120]
[357108362,1743747831777,-151.8,0.0005398,120]
[357108363,1743747831801,-151.8,0.0005399,120]
[357108364,1743747831825,-151.8,0.0005399,120]
[357108365,1743747831850,-151.8,0.0005399,120]
[357108366,1743747831874,-151.8,0.0005399,120]
[357108367,1743747831898,-151.8,0.0005399,120]
[357108368,1743747831922,-151.8,0.0005399,120]
[357108369,1743747831946,-151.8,0.0005399,120]
[357108370,1743747831969,-151.8,0.0005399,120]
[357108371,1743747831994,-151.8,0.0005399,120]
[357108372,1743747832018,-178.964074,0.0005399,120]
[357108373,1743747832042,-185.403286,0.0005399,120]
[357108374,1743747832066,-185.403286,0.0005399,120]
[357108375,1743747832089,-179.566165,0.0005399,120]
[357108376,1743747832114,-151.0,0.0005399,120]
[357108377,1743747832137,-159.729452,0.0005399,120]
[357108378,1743747832160,-723.34,0.00054,120]
[357108379,1743747832185,-400000.0,0.00054,120]
[357108380,1743747832208,-158.746049,0.00054,120]
[357108381,1743747832231,-185.403286,0.00054,120]
[357108382,1743747832254,-185.403286,0.00054,120]
[357108383,1743747832278,-995.0,0.00054,120]
[357108384,1743747832302,-151.0,0.00054,120]
[357108385,1743747832326,-151.8,0.0005444,120]
[357108386,1743747832350,-151.0,0.00054795,120]
[357108387,1743747832374,-151.8,0.0005496,120]
[357108388,1743747832398,-151.8,0.00054969,120]
[357108389,1743747832422,-151.8,0.00054969,120]
[357108390,1743747832446,-151.0,0.00054979,120]
[357108391,1743747832470,-185.403286,0.00054979,120]
[357108392,1743747832507,-185.403286,0.00054979,120]
[357108393,1743747832534,-151.0,0.00054979,120]
[357108394,1743747832559,-151.0,0.00054979,120]
[357108395,1743747832585,-373.59156879,0.0005499,30]
[357108396,1743747832615,-151.8,0.0005499,120]
[357108397,1743747832641,-151.8,0.0005499,120]
[357108398,1743747832667,-151.8,0.0005499,120]
[357108399,1743747832692,-151.8,0.0005499,120]
[357108400,1743747832717,-151.8,0.0005499,120]
[357108401,1743747832741,-151.8,0.0005499,120]
[357108402,1743747832766,-151.8,0.0005499,120]
[357108403,1743747832790,-151.8,0.0005499,120]
[357108404,1743747832815,-151.8,0.0005499,120]
[357108405,1743747832840,-151.8,0.0005499,120]
[357108406,1743747832866,-340000.0,0.00055,120]
[357108407,1743747832893,-1000000.0,0.00055,120]
[357108408,1743747832918,-998.4,0.00055,60]
[357108409,1743747832942,-615.76538209,0.00055,60]
[357108410,1743747832966,-151.0,0.00055,120]
[357108411,1743747832990,-151.921187,0.00055,120]
[357108412,1743747833014,-185.403286,0.00055,120]
[357108413,1743747833039,-185.403286,0.00055,120]
[357108414,1743747833064,-185.403286,0.00055,120]
[357108415,1743747833090,-185.403286,0.00055,120]
[357108416,1743747833116,-151.0,0.00055,120]
[357108417,1743747833142,-249.954456,0.00055,120]
[357108418,1743747833168,-273.65,0.00055833,120]
[357108419,1743747833193,-151.8,0.0005599,120]
[357108420,1743747833217,-151.8,0.0005599,120]
[357108421,1743747833241,-151.8,0.0005599,120]
[357108422,1743747833265,-151.8,0.0005599,120]
[357108423,1743747833290,-151.8,0.0005599,120]
[357108424,1743747833315,-151.8,0.0005599,120]
[357108425,1743747833339,-151.8,0.0005599,120]
[357108426,1743747833364,-637344.63682773,0.00056,120]
[357108427,1743747842946,-150.0,0.00054969,120]
[357108428,1743747842973,-362655.36317227,0.00056,120]
[357108429,1743747842998,-185.403286,0.00056,120]
[357108430,1743747843026,-185.403286,0.00056,120]
[357108431,1743747843053,-995.0,0.00056,120]
[357108432,1743747843079,-9375.01668575,0.0005666,35]
[357108433,1743747843104,-151.8,0.0005699,120]
[357108434,1743747843129,-151.8,0.0005699,120]
[357108435,1743747843153,-151.8,0.0005699,120]
[357108436,1743747843176,-151.8,0.0005699,120]
[357108437,1743747843200,-151.8,0.0005699,120]
[357108438,1743747843225,-151.8,0.0005699,120]
[357108439,1743747843249,-151.8,0.0005699,120]
[357108441,1743747843273,-1000000.0,0.00057,120]
[357108442,1743747843299,-185.403286,0.00057,120]
[357108443,1743747843323,-185.403286,0.00057,120]
[357108444,1743747843348,-168.58,0.00057856,120]
[357108445,1743747843372,-995.0,0.00058,120]
[357108446,1743747843396,-1000.0,0.00058534,120]
[357108447,1743747843426,-159.48,0.000587,60]
[357108448,1743747843456,-159.48,0.000587,60]
[357108449,1743747843486,-159.48,0.000587,60]
[357108450,1743747843515,-159.48,0.000587,60]
[357108451,1743747843544,-159.48,0.000587,60]
[357108452,1743747843573,-159.48,0.000587,60]
[357108453,1743747843607,-159.48,0.000587,60]
[357108454,1743747843634,-151.8,0.0005999,120]
[357108455,1743747843659,-151.8,0.0005999,120]
[357108456,1743747843687,-151.8,0.0005999,120]
[357108457,1743747843713,-151.8,0.0005999,120]
[357108458,1743747843746,-151.8,0.0005999,120]
[357108459,1743747843770,-151.8,0.0005999,120]
[357108460,1743747843795,-151.8,0.0005999,120]
[357108461,1743747843820,-1000.0,0.0006,30]
[357108462,1743747843845,-1000.0,0.0006,30]
[357108463,1743747843869,-1000.0,0.0006,30]
[357108464,1743747843894,-1000.0,0.0006,30]
[357108465,1743747843919,-1000.0,0.0006,30]
[357108466,1743747843944,-1000.0,0.0006,30]
[357108467,1743747843971,-1000000.0,0.0006,120]
[357108468,1743747843996,-20696.23,0.0006,60]
[357108469,1743747844021,-151.0,0.0006,120]
[357108470,1743747844047,-190.689583,0.0006,120]
[357108471,1743747844072,-185.403286,0.0006,120]
[357108472,1743747844096,-185.403286,0.0006,120]
[357108473,1743747844120,-995.0,0.0006,120]
[357108474,1743747844145,-203.803791,0.00060027,120]
[357108475,1743747844171,-193.24,0.00060365,120]
[357108476,1743747844195,-159.68,0.00060925,120]
[357108477,1743747844219,-151.0,0.0006126,120]
[357108478,1743747844243,-273.65,0.00061629,120]
[357108479,1743747844268,-995.0,0.00062,120]
[357108480,1743747844332,150.0,0.00054979,120]
[357108481,1743747844362,150.0,0.0005499,30]
[357108482,1743747844400,150.0,0.00055,120]
[357108483,1743747844663,150.0,0.000549,120]
[357108484,1743747844744,150.0,0.00055833,120]
[357108485,1743747845923,150.0,0.0005599,120]
[357108486,1743747846205,150.0,0.0005589,120]
[357108487,1743747846417,150.0,0.00056,120]
[357108488,1743747846461,150.0,0.0005579,120]
[357108489,1743747846855,150.0,0.0005666,35]
[357108490,1743747846887,150.0,0.000559,120]
[357108491,1743747848375,277.545,0.000588,30]
[357108492,1743747867576,-151.0,0.00045,120]
[357108493,1743747867608,-2491.59,0.00056,60]
[357108494,1743747867634,-151.0,0.00063945,120]
[357108495,1743747867806,-995.0,0.00064,120]
[357108496,1743747867831,-400000.0,0.0006444,30]
[357108497,1743747867855,-185.403286,0.0006444,120]
[357108498,1743747867880,-185.403286,0.0006444,120]
[357108499,1743747867906,-2491.59,0.000645,60]
[357108500,1743747867931,-151.8,0.0006499,120]
[357108501,1743747867958,-151.8,0.0006499,120]
[357108502,1743747867983,-151.8,0.0006499,120]
[357108503,1743747868007,-151.8,0.0006499,120]
[357108504,1743747868036,-151.8,0.0006499,120]
[357108505,1743747868061,-151.8,0.0006499,120]
[357108506,1743747868085,-151.8,0.0006499,120]
[357108507,1743747868109,-1000.0,0.00065,30]
[357108508,1743747868132,-1000.0,0.00065,30]
[357108509,1743747868156,-1000.0,0.00065,30]
[357108510,1743747868180,-1000.0,0.00065,30]
[357108511,1743747868206,-1000000.0,0.00065,120]
[357108512,1743747868229,-151.0,0.00065,120]
[357108513,1743747868253,-185.403286,0.00065,120]
[357108514,1743747868277,-185.40329,0.00065,120]
[357108515,1743747868301,-1000.0,0.00065038,120]
[357108516,1743747868324,-3000.0,0.000655,120]
[357108517,1743747868348,-150.0,0.00065753,30]
[357108518,1743747868374,-297.32248288,0.00065753,30]
[357108519,1743747868399,-500.0,0.00065753,30]
[357108520,1743747868424,-786.0,0.00065753,30]
[357108521,1743747868448,-995.0,0.00066,120]
[357108522,1743747868473,-500.0,0.00066164,120]
[357108523,1743747868499,-500.0,0.00066438,120]
[357108524,1743747868526,-154.09,0.00066561,120]
[357108525,1743747868550,-500.0,0.00066986,120]
[357108526,1743747868574,-273.65,0.00067426,120]
[357108527,1743747868601,-500.0,0.00067534,120]
[357108528,1743747868639,-168.58,0.00067708,120]
[357108529,1743747868667,-995.0,0.00068,120]
[357108530,1743747868693,-500.0,0.00068082,120]
[357108531,1743747869455,736.51384025,0.0006444,58]
[357108532,1743747871879,498968.82085543,0.0006444,57]
[357108533,1743747928599,2021.83789031,0.00011,2]
[357108534,1743747966555,1829.21178908,8e-05,2]
[357108539,1743748080573,7469.05451761,0.00015,2]
[357108541,1743748116044,273.81338325,0.000149,2]
[357108542,1743748122945,259.93065015,0.00028,60]
[357108557,1743748231847,-601.54859924,0.00015,2]
[357108564,1743748232080,-540.78774977,0.00015,2]
[357108565,1743748232092,-487.42407547,0.00015,2]
[357108566,1743748232104,-869.81192717,0.00015,2]
[357108567,1743748232115,-1917.29626969,0.00015,2]
[357108568,1743748232272,-1737.01633996,0.00015,2]
[357108569,1743748232284,-1626.75619156,0.00015,2]
[357109073,1743748237766,-348.23005832,0.00015,2]
[357109075,1743748237777,-437.22126349,0.00015,2]
[357109079,1743748237790,-496.99999,0.00015,2]
[357109082,1743748237804,-784.500026,0.00015,2]
[357109085,1743748237815,-286.49996773,0.00015,2]
[357109087,1743748237827,-1147.65589616,0.00015,2]
[357109089,1743748237838,-30388.77321398,0.00015,2]
[357109091,1743748237849,-670.435461,0.00015,2]
[357109093,1743748237861,-87747.12942466,0.00015,2]
[357109095,1743748237870,-8419.61973936,0.00016,2]
[357109097,1743748237880,-200.0,0.0001634,2]
[357109099,1743748237890,-190.63099469,0.00018,2]
[357109101,1743748237900,-1143.60048279,0.00018,2]
[357109103,1743748237909,-665.6801457,0.000181,2]
[357109106,1743748237921,-1044.55201014,0.000181,2]
[357109108,1743748237931,-4552.42798986,0.00019,2]
[357109110,1743748237943,-289.69192956,0.00019,2]
[357109112,1743748237955,-1179.5372909,0.00019,2]
[357109114,1743748237967,-1016.2321986,0.00019,2]
[357109120,1743748238009,-592.14361496,0.00019,2]
[357109122,1743748238020,-7710.74342811,0.00019,2]
[357109124,1743748238031,-6006.39317262,0.00019,2]
[357109126,1743748238042,-941.57868834,0.00019,2]
[357109128,1743748238053,-599.73664137,0.00019,2]
[357109130,1743748238065,-14346.66954172,0.00019,2]
[357109132,1743748238076,-5017.11735741,0.00019,2]
[357109314,1743748239990,-464.86247294,0.00019,2]
[357109331,1743748240146,-2768.10488298,0.00019,2]
[357109334,1743748240159,-5654.17689864,0.00019,2]
[357109335,1743748240168,-1000.0,0.0001902,2]
[357109338,1743748240179,-3309.74353675,0.0001961,2]
[357109340,1743748240191,-456.07956461,0.0001987,2]
[357109348,1743748240272,-2566.0334394,0.0001987,2]
[357109350,1743748240283,-1344.44272103,0.000199,2]
[357109352,1743748240295,-4448.86995907,0.0002,2]
[357109354,1743748240307,-300.0,0.0002,2]
[357109363,1743748240385,-276596.93792865,0.0002,2]
[357109373,1743748240473,-26637.64922475,0.0002,2]
[357109375,1743748240482,-5593.24197038,0.0002,2]
[357109377,1743748240494,-13660.88360687,0.0002,2]
[357109627,1743748242912,-3671.51041726,0.0002,2]
[357109629,1743748242924,-2700.0,0.0002,2]
[357109631,1743748242936,-479.32723893,0.0002,2]
[357109684,1743748243455,-920.572404,0.0002,2]
[357109686,1743748243467,-962.36821907,0.0002,2]
[357109688,1743748243479,-1897.84509495,0.0002,2]
[357109691,1743748243490,-526.771,0.0002,2]
[357109693,1743748243502,-8061.9412682,0.0002,2]
[357109695,1743748243513,-619.819988,0.0002,2]
[357109697,1743748243524,-1270.0003,0.0002,2]
[357109927,1743748245925,-26432.6227989,0.0002,2]
[357109928,1743748245935,-6281.9006532,0.0002,2]
[357109931,1743748245945,-20534.69675537,0.0002,4]
[357109932,1743748245955,-151.8,0.0002,2]
[357109935,1743748245965,-151.8,0.0002099,2]
[357109937,1743748245975,-237753.7103496,0.00021,2]
[357109939,1743748245984,-3788.9096195,0.00024,2]
[357109940,1743748245994,-5000.00284615,0.00024,5]
[357109942,1743748246004,-1344.44272099,0.00025456,2]
[357109943,1743748246014,-273.65,0.00026849,2]
[357109945,1743748246023,-250.0,0.00027,2]
[357109947,1743748246033,-156.08855951,0.00027,2]
[357109949,1743748246043,-1344.44272099,0.00031011,2]
[357109951,1743748246052,-2596.72606241,0.000318,2]
[357109953,1743748246062,-273.65,0.00032646,2]
[357109955,1743748246072,-1420.212,0.00033288,2]
[357109957,1743748246082,-178.078,0.00033388,2]
[357109959,1743748246092,-1494.448,0.00033388,2]
[357109961,1743748246102,-151.0,0.00033388,2]
[357109963,1743748246111,-851.0,0.00033388,2]
[357109965,1743748246121,-500.0,0.000345,5]
[357109967,1743748246131,-1723.47426804,0.00034598,7]
[357109969,1743748246140,-243.51297548,0.000347,5]
[357109971,1743748246149,-500.0,0.000347,5]
[357109973,1743748246159,-151.8,0.0003508,2]
[357109975,1743748246168,-18222.5846411,0.0003509,2]
[357109977,1743748246177,-18525.3800426,0.0003509,2]
[357109979,1743748246186,-241.72,0.000351,2]
[357109981,1743748246196,-7990.67,0.00035566,2]
[357109983,1743748246205,-150.99,0.00035566,30]
[357109984,1743748246214,-299.99,0.00035566,30]
[357109986,1743748246223,-5070.68,0.00035566,2]
[357109988,1743748246232,-150.99,0.00035566,2]
[357109990,1743748246241,-315.06161175,0.00035598,20]
[357109992,1743748246250,-166.0,0.00036388,2]
[357109994,1743748246259,-1344.44272099,0.00036567,2]
[357109996,1743748246268,-725.18,0.000379,7]
[357109998,1743748246278,-273.65,0.00038443,2]
[357110000,1743748246287,-831.00484655,0.00039979,5]
[357110002,1743748246297,-1500.0,0.0004,120]
[357110004,1743748246306,-505.34020602,0.00040179,5]
[357110006,1743748246315,-153.91,0.00040538,2]
[357110007,1743748246324,-1344.44272099,0.00042122,15]
[357110008,1743748246334,-1500.0,0.000425,120]
[357110009,1743748246343,-253.81,0.00042679,30]
[357110010,1743748246351,-335.52,0.00042679,30]
[357110011,1743748246361,-2506.52568619,0.0004399,30]
[357110012,1743748246370,-500.0,0.00044095,2]
[357110013,1743748246379,-483.55597089,0.00044167,10]
[357110014,1743748246388,-273.65,0.00044239,2]
[357110015,1743748246397,-2000.0,0.00045,120]
[357110016,1743748246406,-151.0,0.00045,120]
[357110017,1743748246416,-151.0,0.00045,120]
[357110018,1743748246425,-199.99999901,0.00045,2]
[357110019,1743748246434,-355.0,0.00046,2]
[357110020,1743748246443,-310.59,0.00046135,2]
[357110021,1743748246453,-200.0,0.00046355,2]
[357110023,1743748246462,-250.0,0.00046582,2]
[357110024,1743748246472,-540.64721116,0.000468,120]
[357110026,1743748246482,-499.77,0.000474,120]
[357110028,1743748246491,-1344.44272099,0.00047678,15]
[357110030,1743748246501,-604.32,0.000477,14]
[357110032,1743748246510,-258.98,0.00048401,2]
[357110034,1743748246519,-614.81068193,0.000486,120]
[357110036,1743748246529,-206.72,0.00048776,2]
[357110038,1743748246538,-618.71378525,0.00049,120]
[357110040,1743748246547,-200.0,0.00049116,2]
[357110042,1743748246556,-327.92,0.000492,2]
[357110044,1743748246566,-499.77,0.000493,120]
[357110046,1743748246575,-250.0,0.00049419,120]
[357110048,1743748246584,-100000.0,0.0004955,120]
[357110050,1743748246594,-500.0,0.00049661,30]
[357110052,1743748246605,-151.8,0.0004988,120]
[357110054,1743748246615,-36445.1692821,0.0004989,4]
[357110056,1743748246624,-37050.7600852,0.0004989,4]
[357110058,1743748246634,-54430.40069411,0.000499,120]
[357110060,1743748246643,-300.0,0.00049993,120]
[357110062,1743748246652,-512.9985,0.0005,2]
[357110064,1743748246662,-225.33457551,0.0005,120]
[357110066,1743748246672,-273.65,0.00050036,2]
[357110068,1743748246681,-500.0,0.00050073,5]
[357110070,1743748246691,-151.8,0.0005008,120]
[357110072,1743748246701,-200.0,0.0005009,15]
[357110074,1743748246710,-200.0,0.0005009,15]
[357110076,1743748246719,-29522.24543369,0.0005009,4]
[357110078,1743748246735,-25145.50848951,0.0005009,4]
[357110080,1743748246744,-54580.59717766,0.0005009,4]
[357110082,1743748246756,-995.54295024,0.0005009,4]
[357110084,1743748246766,-151.8,0.0005009,120]
[357110086,1743748246776,-12847.83824124,0.000501,7]
[357110088,1743748246788,-281.0,0.000501,7]
[357110091,1743748246800,-934.40077117,0.000501,7]
[357110093,1743748246814,-368.72385109,0.000501,7]
[357110095,1743748246825,-3294.22527715,0.000501,7]
[357110100,1743748246867,-95240.82297166,0.000501,7]
[357110102,1743748246877,-200.0,0.00050591,15]
[357110104,1743748246887,-200.0,0.00050591,15]
[357110106,1743748246896,-166.66,0.00050656,2]